Cogmind - Beta 16 @@@ ROGUE MODE // 2026.01.15 @ 21:51:56 Player: Blaf Result: Core destroyed Performance ------------- Evolutions (5) 2500 Regions Visited (13) 2600 Robots Destroyed (84) 420 Value Destroyed (2563) 2563 Prototype IDs (3) 60 Alien Tech Used (0) 0 Bonus (25) 25 TOTAL SCORE: 8168 Bonus ------- Follower Combat Kills 25 Cogmind --------- Core Integrity 0/1000 Matter 149/300 Energy 73/315 System Corruption 7% Temperature Critical (597) Movement Walking (120) Location -5/Upper Caves Parts ------- > --- POWER (2) -------- Neutrino Core > --- PROPULSION (6) --- Carbon-fiber Leg Flexi-carbon Leg Flexi-carbon Leg Armored Leg > --- UTILITY (5) ------ Large Storage Unit Targeting Computer Precision Matter Filter > --- WEAPON (4) ------- Tesla Rifle Heavy Laser Heavy Laser Autogun > --- INVENTORY (15) --- Light Ion Engine Light Nuclear Core Flexi-carbon Leg Armored Leg Armored Leg Compact Wheel Compact Wheel Advanced Heat Sink Improved Cooling System Wave Gun Flak Gun Coil Gun Magnetic Acceleration Cannon Peak State ------------ > --- POWER ------------ Light Nuclear Core Neutrino Core > --- PROPULSION ------- Flexi-carbon Leg Flexi-carbon Leg Armored Leg Armored Leg Armored Leg Thunder Leg > --- UTILITY ---------- Large Storage Unit Improved Matter Compressor Targeting Computer Target Analyzer System Shield > --- WEAPON ----------- Coil Gun Coil Gun Coil Gun Coil Gun > --- INVENTORY -------- Light Ion Engine Light Nuclear Core Carbon-fiber Leg Flexi-carbon Leg Flexi-carbon Leg Compact Wheel Compact Wheel Improved Cooling System Medium Matter Pod Improved Medium Armor Plating Wave Gun [Rating: 78] Favorites ----------- Power Light Ion Engine Engine Light Ion Engine Power Core Light Nuclear Core Propulsion Armored Leg Leg Armored Leg Hover Unit Airjet Flight Unit Flight Unit Utility Target Analyzer Device Improved Trap Scanner Storage Small Storage Unit Processor Target Analyzer Hackware System Shield Protection Hardened Light Armor Plating Weapon Coil Gun Energy Gun Heavy Laser Energy Cannon Light EM Pulse Cannon Ballistic Gun Coil Gun Ballistic Cannon Advanced Assault Cannon Launcher Rocket Launcher Special Weapon Mining Laser Special Melee Weapon Datajack Build | -11 -10 -10 -9 -9 -8 -7 -7 -7 -6 -6 -6 -5 -5 ------- Run | Yrd Mat Min Mat Min Mat Fac Low Low Fac Low Low Fac Upp Slots Evolved 10 | . . . 2 . 2 2 . . 2 . . 2 . Power 1 | . . . . . . 1 . . . . . . . Propulsion 4 | . . . . . 2 1 . . 1 . . . . Utility 3 | . . . 2 . . . . . 1 . . . . Weapon 2 | . . . . . . . . . . . . 2 . Parts Attached 86 | 5 . 1 16 . 10 1 . 1 12 7 . 32 1 Power 12 | 1 . . 2 . 2 . . 1 1 1 . 4 . Engine 7 | 1 . . 2 . 2 . . 1 1 . . . . Core 5 | . . . . . . . . . . 1 . 4 . Reactor . | . . . . . . . . . . . . . . Propulsion 25 | 2 . . 4 . 4 . . . 7 1 . 7 . Treads . | . . . . . . . . . . . . . . Leg 17 | 2 . . 1 . . . . . 6 1 . 7 . Wheel . | . . . . . . . . . . . . . . Hover 1 | . . . . . . . . . 1 . . . . Flight 7 | . . . 3 . 4 . . . . . . . . Utility 19 | 1 . . 2 . . . . . 4 3 . 9 . Device 5 | . . . . . . . . . 1 2 . 2 . Storage 6 | 1 . . . . . . . . . . . 5 . Processor 2 | . . . . . . . . . 1 . . 1 . Hackware 2 | . . . . . . . . . 1 1 . . . Protection 4 | . . . 2 . . . . . 1 . . 1 . Artifact . | . . . . . . . . . . . . . . Weapon 30 | 1 . 1 8 . 4 1 . . . 2 . 12 1 Energy Gun 4 | . . . . . . . . . . 1 . 3 . Energy Cannon 6 | . . . . . 3 1 . . . . . 2 . Ballistic Gun 15 | 1 . . 7 . . . . . . . . 6 1 Ballistic Cannon 2 | . . . . . . . . . . 1 . 1 . Launcher 1 | . . . 1 . . . . . . . . . . Special Weapon 1 | . . 1 . . . . . . . . . . . Impact Weapon . | . . . . . . . . . . . . . . Slashing Weapon . | . . . . . . . . . . . . . . Piercing Weapon . | . . . . . . . . . . . . . . Special Melee Weapon 1 | . . . . . 1 . . . . . . . . Unidentified Prototypes 3 | . . . 1 . . . . . . . . 2 . Parts Lost 28 | . . . 5 . 6 . 2 3 1 . . 8 3 Power 4 | . . . . . 1 . . 1 . . . 1 1 Propulsion 9 | . . . 2 . 3 . . 2 . . . 1 1 Utility 3 | . . . . . . . . . . . . 3 . Weapon 12 | . . . 3 . 2 . 2 . 1 . . 3 1 Highest Loss Streak 4 | . . . 4 . 4 . 2 3 1 . . 3 3 To Critical Strikes 1 | . . . . . 1 . . . . . . . . Average Backups 5 | . 1 1 3 5 4 5 4 3 3 3 4 9 13 Power 1 | . 1 1 2 2 1 2 2 1 1 1 1 1 2 Propulsion 1 | . . . . 1 . . . . 1 1 1 4 5 Utility . | . . . . . . . 1 1 1 1 1 1 2 Weapon . | . . . . 2 2 2 1 . . . 1 1 4 Tool/Special . | . . . . . . . . . . . . . . Unused Backups 7 | 1 . . . . . . . . . . . . 6 Power . | . . . . . . . . . . . . . . Propulsion 3 | 1 . . . . . . . . . . . . 2 Utility 2 | . . . . . . . . . . . . . 2 Weapon 2 | . . . . . . . . . . . . . 2 Tool/Special . | . . . . . . . . . . . . . . Average Slot Usage (%) 75 | . 71 83 55 33 32 48 46 35 68 80 93 94 74 Engine 5 | . 14 14 6 11 8 7 7 5 11 6 6 . . Core 4 | . . . . . . . . . . 5 6 10 8 Leg 26 | . 28 28 11 . . . . . 33 36 40 34 26 Flight 4 | . . . 3 22 16 30 30 18 2 . . . . Device 2 | . . . . . . . . . . 5 13 2 5 Storage 4 | . 14 14 9 . . . . . . . . 6 5 Processor 4 | . . . . . . . . . 2 6 6 9 5 Hackware 2 | . . . . . . . . . 2 7 6 3 . Protection 2 | . . . 6 . . . . . 3 6 6 2 . Energy Gun 1 | . . . . . . . . . . 1 . 2 17 Ballistic Gun 10 | . 14 14 14 . . . 5 10 10 . . 15 1 Special Weapon 1 | . . 12 1 . . . . . . . . . . Peak Build Rating 78 | 5 5 6 11 4 9 13 13 9 46 58 56 78 65 Average Rating 39 | 4 5 5 6 4 4 10 9 6 36 47 56 69 57 On Entrance 20 | . 5 5 6 4 4 9 13 9 6 45 56 56 65 Avg Prop Armor Cover (%) 6 | . . . . . . . . . 5 . . 6 . Naked Turns 5 | . . . . . 5 . . . . . . . . Heaviest Build 71 | 9 9 10 24 7 9 16 9 7 22 24 24 71 55 Greatest Support 114 | 20 20 20 20 10 20 20 20 10 108 108 103 114 71 Greatest Overweight (x) 7 | . . . 7 . 2 . . . . . . . . Average Overweight (x) . | . . . . . . . . . . . . . . Largest Inventory Capacity 15 | 8 8 8 8 5 5 5 5 5 5 5 5 15 15 Average Capacity 7 | 6 8 8 7 5 5 5 5 5 5 5 5 10 15 Most Carried 14 | 3 1 2 5 5 5 5 5 4 4 4 4 14 13 Average Carried 5 | . 1 1 3 5 4 4 4 3 2 3 4 9 13 Final Capacity 15 | 8 8 8 5 5 5 5 5 5 5 5 5 15 15 Final Carried 13 | 1 1 1 5 5 5 5 4 3 4 4 4 13 13 Class Distribution -------------------- 48% | Mutant 30% | Scavenger-Gunner 10% | Scavenger-Sprinter 4% | Scavenger-Mutant Dominant Class ---------------- Mutant | -10/Materials Mutant | -10/Mines Mutant | -9/Materials Mutant | -9/Mines Mutant | -8/Materials Scavenger-Sprinter | -7/Factory Scavenger-Sprinter | -7/Lower Caves Scavenger-Mutant | -7/Lower Caves Mutant | -6/Factory Mutant | -6/Lower Caves Mutant | -6/Lower Caves Scavenger-Gunner | -5/Factory Scavenger-Gunner | -5/Upper Caves Resources | -11 -10 -10 -9 -9 -8 -7 -7 -7 -6 -6 -6 -5 -5 ----------- Run | Yrd Mat Min Mat Min Mat Fac Low Low Fac Low Low Fac Upp Matter Collected 2850 | 190 13 86 460 . 95 . 83 50 162 186 10 1477 38 Remotely . | . . . . . . . . . . . . . . Salvage Created 3667 | . 13 . 546 . 128 . 202 57 158 68 . 2406 89 Parts 175 | . 1 . 40 . 10 . 10 2 9 1 . 95 7 Haulers Intercepted 6 | . . . 2 . . . . . 1 . . 3 . Recyclers Shooed 1 | . . . 1 . . . . . . . . . . Parts Field Recycled . | . . . . . . . . . . . . . . Retrieved Matter . | . . . . . . . . . . . . . . Parts Self-Destructed 17 | . . . . . . . 5 4 . 3 . . 5 Prevented . | . . . . . . . . . . . . . . Parts Restored . | . . . . . . . . . . . . . . Kills | -11 -10 -10 -9 -9 -8 -7 -7 -7 -6 -6 -6 -5 -5 ------- Run | Yrd Mat Min Mat Min Mat Fac Low Low Fac Low Low Fac Upp Combat Hostiles Destroyed 59 | . . 1 13 . 2 . 4 3 1 1 . 30 4 Guns 35 | . . . 7 . . . . 3 1 . . 21 3 Cannons 13 | . . 1 . . 2 . 2 . . . . 7 1 AOE 9 | . . . 6 . . . 2 . . . . 1 . Classes Destroyed 15 | . 1 1 9 . 1 . 1 . 1 . . 1 . Worker 9 | . . . 1 . 1 . . . 1 . . 6 . Builder 3 | . . . 1 . . . . . . . . 2 . Hauler 6 | . . . 2 . . . . . 1 . . 3 . Recycler 4 | . . . 1 . . . . . . . . 3 . Operator 1 | . 1 . . . . . . . . . . . . Watcher 3 | . . . 1 . 1 . . . . . . 1 . Swarmer 27 | . . . 6 . 1 . 4 3 . . . 9 4 Grunt 13 | . . . 3 . . . . . . 1 . 9 . Brawler 1 | . . . 1 . . . . . . . . . . Duelist 1 | . . . . . . . . . . . . 1 . Sentry 8 | . . . 3 . . . . . . . . 5 . Hunter 3 | . . . . . 1 . . . . . . 2 . Programmer 5 | . . . . . . . . . 1 . . 4 . Samaritan 3 | . . . . . . . 3 . . . . . . Assembled 1 | . . 1 . . . . . . . . . . . Best Kill Streak 9 | . 1 1 9 . 3 . 4 3 1 1 . 7 4 Combat Bots Only 5 | . . 1 4 . 2 . 4 3 1 1 . 5 4 Max Kills in Single Turn 3 | . 1 1 3 . 1 . 1 1 1 1 . 3 1 Gunslinging 1 | . . . . . . . . . . . . 1 . Exploded 3 | . . . 3 . . . 1 . . . . 1 . Melee . | . . . . . . . . . . . . . . Uniques/NPCs Destroyed . | . . . . . . . . . . . . . . Combat | -11 -10 -10 -9 -9 -8 -7 -7 -7 -6 -6 -6 -5 -5 -------- Run | Yrd Mat Min Mat Min Mat Fac Low Low Fac Low Low Fac Upp Hostile Shots Fired 506 | . . 14 101 3 66 . 27 29 30 22 . 190 24 Missed 165 | . . 5 33 1 25 . 12 13 5 7 . 60 4 Hits 341 | . . 9 68 2 41 . 15 16 25 15 . 130 20 Melee 11 | . . 5 . . . . . . . 6 . . . Projectile 330 | . . 4 68 2 41 . 15 16 25 9 . 130 20 AOE 2 | . . . 1 . . . . . . . . 1 . Critical Strikes 11 | . . . 2 . 5 . 1 . 1 . . 2 . Part Disruptions 1 | . . . . . . . . . . . . 1 . Damage Taken 6696 | . . 172 955 21 521 . 285 254 376 207 . 3300 605 Core 2015 | . . 65 346 11 278 . 67 92 44 5 . 802 305 Absorbed by Shields . | . . . . . . . . . . . . . . Core Remaining (%) 67 | 100 . 74 . 10 49 . . 77 . . 94 . . Volleys Fired 316 | . 7 33 61 . 9 . 27 11 48 16 . 98 6 Largest 4 | . 1 2 2 . 1 . 2 1 2 1 . 4 4 Hottest 243 | . 20 120 53 . 56 . 125 23 43 75 . 219 243 Shots Fired 591 | . 7 35 93 . 8 . 28 11 59 16 1 312 21 Gun 509 | . 7 24 84 . . . 17 11 59 16 . 273 18 Cannon 62 | . . . . . 8 . 11 . . . 1 39 3 Launcher 9 | . . . 9 . . . . . . . . . . Special 11 | . . 11 . . . . . . . . . . . Kinetic 485 | . 7 24 84 . . . 17 11 59 11 1 268 3 Thermal 53 | . . 11 . . . . . . . 5 . 25 12 Explosive 9 | . . . 9 . . . . . . . . . . Electromagnetic 44 | . . . . . 8 . 11 . . . . 19 6 Robot Hit Streak 17 | . 5 3 17 . 7 . 5 5 14 6 . 11 1 Robot Miss Streak 6 | . 1 5 5 . 2 . 2 3 4 2 . 6 5 Penetration Max 2 | . . . . . . . . . . . . 2 . Secondary Targets 6 | . . . . . . . . . . . . 6 . Max Gunslinging Chain 2 | . . . . . . . . . . . . 2 . Shots Hit Robots 353 | . 6 10 53 . 10 . 23 9 39 13 . 184 6 Core Hits 164 | . 3 5 28 . 6 . 16 6 8 3 . 85 4 Critical Kills 7 | . . . 1 . . . . . . . . 6 . Critical Parts Destroyed 16 | . . 1 . . . . . . 2 . . 13 . Critical Strikes 30 | . . 1 1 . 1 . . . 2 2 . 23 . Burn 2 | . . . . . . . . . . 2 . . . Meltdown 1 | . . . . . . . . . . . . 1 . Destroy 24 | . . 1 1 . . . . . 2 . . 20 . Blast 2 | . . . . . . . . . . . . 2 . Corrupt 1 | . . . . . 1 . . . . . . . . Melee Attacks 7 | . . . . . 7 . . . . . . . . Impact . | . . . . . . . . . . . . . . Slashing . | . . . . . . . . . . . . . . Piercing . | . . . . . . . . . . . . . . Sneak Attacks 2 | . . . . . 2 . . . . . . . . Combat Hostiles . | . . . . . . . . . . . . . . Follow-up Attacks . | . . . . . . . . . . . . . . Damage Inflicted 7923 | . 52 116 1155 . 161 . 601 128 424 174 . 4947 165 Guns 5985 | . 52 68 600 . . . 252 128 424 171 . 4189 101 Cannons 1008 | . . . . . 145 . 138 . . . . 661 64 Explosions 853 | . . . 555 . . . 211 . . . . 87 . Melee . | . . . . . . . . . . . . . . Ramming 29 | . . . . . 16 . . . . 3 . 10 . Kinetic 5898 | . 52 68 600 . . . 252 128 424 66 . 4244 64 Thermal 834 | . . 48 . . . . 174 . . 105 . 429 78 Explosive 507 | . . . 507 . . . . . . . . . . Electromagnetic 655 | . . . 48 . 145 . 175 . . . . 264 23 Impact . | . . . . . . . . . . . . . . Slashing . | . . . . . . . . . . . . . . Piercing . | . . . . . . . . . . . . . . Highest Corruption 7 | . . . . . 2 . . . 7 7 7 7 7 Average Corruption 4 | . . . . . 2 . . . 6 7 7 2 7 Corruption Purged . | . . . . . . . . . . . . . . Corruption Blocked . | . . . . . . . . . . . . . . Effects 49 | . . . . . 4 . . . 4 16 2 23 . Message Errors 12 | . . . . . 1 . . . 2 4 . 5 . Matter Fused 9 | . . . . . 1 . . . . 4 1 3 . Heat Flow Errors 8 | . . . . . 1 . . . 1 2 . 4 . Energy Discharges 4 | . . . . . . . . . . 1 . 3 . Parts Rejected 2 | . . . . . . . . . . 2 . . . Data Loss (minor) 3 | . . . . . . . . . 1 . . 2 . Data Loss (major) 5 | . . . . . . . . . . 3 . 2 . Misfires 3 | . . . . . . . . . . . 1 2 . Alerts 1 | . . . . . . . . . . . . 1 . Weapon Failures 2 | . . . . . 1 . . . . . . 1 . Overload Shots . | . . . . . . . . . . . . . . Overflow Damage 19 | . . . 7 . . . 5 . . . . 7 . Projectiles 7 | . . . . . . . . . . . . 7 . Explosions 12 | . . . 7 . . . 5 . . . . . . Melee . | . . . . . . . . . . . . . . Knockbacks 3 | . . . . . . . . . . . . 2 1 Impact . | . . . . . . . . . . . . . . Kinetic 3 | . . . . . . . . . . . . 2 1 Secondary . | . . . . . . . . . . . . . . Self-Inflicted Damage 111 | . . . . . 6 . 57 . . . . 48 . Shots 3 | . . . . . . . 2 . . . . 1 . Rammed 7 | . . . . . 7 . . . . . . . . Targets Rammed 10 | . . . . . 7 . . . . 2 . 1 . Kicked 3 | . . . . . . . . . . 2 . 1 . Crushed . | . . . . . . . . . . . . . . Highest Temperature 788 | . . 112 18 . 277 . 71 . 296 271 22 719 788 Average Temperature 159 | . . 63 3 . 104 . 35 . 135 144 11 177 513 Received Heat Transfer 882 | . . . 297 12 90 . 9 9 . 54 . 411 . Effects 64 | . . . . . 1 . . . . . . 48 15 Shutdowns 17 | . . . . . . . . . . . . 16 1 Energy Bleed 9 | . . . . . 1 . . . . . . 7 1 Interference 3 | . . . . . . . . . . . . 3 . Matter Decay 5 | . . . . . . . . . . . . 3 2 Short Circuit 4 | . . . . . . . . . . . . 4 . Damage (minor) 7 | . . . . . . . . . . . . 3 4 Damage (major) 13 | . . . . . . . . . . . . 8 5 Damage (core) 6 | . . . . . . . . . . . . 4 2 Siege Activations . | . . . . . . . . . . . . . . Martial Activations . | . . . . . . . . . . . . . . Shielding Activations . | . . . . . . . . . . . . . . Robots Disrupted . | . . . . . . . . . . . . . . Combat Hostiles . | . . . . . . . . . . . . . . Robots Corrupted . | . . . . . . . . . . . . . . Combat Hostiles . | . . . . . . . . . . . . . . Parts Fried 1 | . . . . . . . 1 . . . . . . Impact Corruptions . | . . . . . . . . . . . . . . Robots Melted 2 | . . . . . . . . . . 1 . 1 . Combat Hostiles 2 | . . . . . . . . . . 1 . 1 . Parts Melted 3 | . . . . . . . . . . 1 . 2 . Heat Transferred 1388 | . . 100 . . . . 150 . . 333 . 657 148 Parts Sabotaged . | . . . . . . . . . . . . . . Parts Stolen 3 | . . . . . . . . . . 3 . . . Parts Stripped . | . . . . . . . . . . . . . . Power Chain Reactions 5 | . . . 1 . . . 3 . . . . 1 . Alert | -11 -10 -10 -9 -9 -8 -7 -7 -7 -6 -6 -6 -5 -5 ------- Run | Yrd Mat Min Mat Min Mat Fac Low Low Fac Low Low Fac Upp Maximum Alert Level 1 | . . . 1 . . . . . . . . 1 . Low Security (%) 77 | 100 100 100 74 100 100 100 . . 100 . . 62 . Level 1 22 | . . . 25 . . . . . . . . 37 . Level 2 . | . . . . . . . . . . . . . . Level 3 . | . . . . . . . . . . . . . . Level 4 . | . . . . . . . . . . . . . . Level 5 . | . . . . . . . . . . . . . . High Security . | . . . . . . . . . . . . . . Max Security . | . . . . . . . . . . . . . . Peak Influence 375 | . 5 21 240 84 65 23 . . 65 . . 375 . Initial 65 | . . . 2 49 32 23 . . 65 . . . . Average 114 | . . 1 135 53 30 10 . . 15 . . 184 . Influence Increases 2214 | . 5 38 417 45 152 . 300 70 57 35 . 1005 90 Destroy 0b10 Robot/C 1180 | . . 20 260 . 40 . 80 60 20 20 . 600 80 Destroy 0b10 Robot/NC 130 | . 5 . 30 . 10 . . . 10 . . 75 . Destroy Leader 258 | . . . 66 . 12 . 10 10 12 . . 138 10 Allied During Kill 1 | . . 1 . . . . . . . . . . . Disable Machine 90 | . . . 15 . . . . . . . . 75 . Destroy Structure 90 | . . 2 46 . . . . . . . . 42 . Partial Spotted 30 | . . . . . 15 . . . 15 . . . . Lose Combat Pursuer 435 | . . 15 . 45 75 . 210 . . 15 . 75 . Influence Decreases 1934 | . 5 31 297 88 184 52 195 71 161 35 . 639 176 Entered New Map 360 | . . . 5 78 52 29 . 21 39 . . . 136 Time Decay 1314 | . 5 31 242 10 72 23 175 20 122 35 . 569 10 Lost Part 260 | . . . 50 . 60 . 20 30 . . . 70 30 Squads Dispatched 9 | . 2 . . . 1 . . . 1 . . 5 . Investigation 1 | . 1 . . . . . . . . . . . . Extermination 3 | . . . . . . . . . 1 . . 2 . Reinforcement 5 | . 1 . . . 1 . . . . . . 3 . Assault . | . . . . . . . . . . . . . . Garrison . | . . . . . . . . . . . . . . Intercept . | . . . . . . . . . . . . . . Searches Triggered . | . . . . . . . . . . . . . . Construction Impeded . | . . . . . . . . . . . . . . Haulers Reinforced 1 | . . . . . . . . . . . . 1 . Active Scanning Responses . | . . . . . . . . . . . . . . Cargo Convoy Interrupts . | . . . . . . . . . . . . . . Stealth | -11 -10 -10 -9 -9 -8 -7 -7 -7 -6 -6 -6 -5 -5 --------- Run | Yrd Mat Min Mat Min Mat Fac Low Low Fac Low Low Fac Upp Distress Signals 2 | . . . . . . . . . . . . 2 . Communications Jammed . | . . . . . . . . . . . . . . Distress Signals . | . . . . . . . . . . . . . . Times Spotted 131 | . 5 3 19 3 17 3 15 7 4 8 . 43 4 Peak Tracking Total 11 | . 3 1 5 3 11 4 5 4 3 3 . 5 4 Tactical Retreats 15 | . . 1 . 1 2 . 6 . . 1 . 4 . Traps | -11 -10 -10 -9 -9 -8 -7 -7 -7 -6 -6 -6 -5 -5 ------- Run | Yrd Mat Min Mat Min Mat Fac Low Low Fac Low Low Fac Upp Traps Triggered 4 | . 1 . . . . 1 . . 1 . . 1 . Indirectly . | . . . . . . . . . . . . . . Trap Hack Attempts . | . . . . . . . . . . . . . . Triggered . | . . . . . . . . . . . . . . Disarmed . | . . . . . . . . . . . . . . Reprogrammed . | . . . . . . . . . . . . . . Reused . | . . . . . . . . . . . . . . Traps Extracted . | . . . . . . . . . . . . . . Installed . | . . . . . . . . . . . . . . Triggered . | . . . . . . . . . . . . . . Machines | -11 -10 -10 -9 -9 -8 -7 -7 -7 -6 -6 -6 -5 -5 ---------- Run | Yrd Mat Min Mat Min Mat Fac Low Low Fac Low Low Fac Upp Machines Disabled 6 | . . . 1 . . . . . . . . 5 . Max in Single Turn 1 | . . . 1 . . . . . . . . 1 . Machines Repaired . | . . . . . . . . . . . . . . Machines Dismantled . | . . . . . . . . . . . . . . Machines Sabotaged . | . . . . . . . . . . . . . . Overloaded Fab Kills . | . . . . . . . . . . . . . . Hacking | -11 -10 -10 -9 -9 -8 -7 -7 -7 -6 -6 -6 -5 -5 --------- Run | Yrd Mat Min Mat Min Mat Fac Low Low Fac Low Low Fac Upp Machines Accessed 4 | . . . 1 . . 1 1 . 1 . . . . Terminals 1 | . . . . . . 1 . . . . . . . Fabricators . | . . . . . . . . . . . . . . Repair Stations 1 | . . . . . . . . . 1 . . . . Recycling Units . | . . . . . . . . . . . . . . Scanalyzers 1 | . . . 1 . . . . . . . . . . Garrison Access . | . . . . . . . . . . . . . . Total Hacks 9 | . . . 4 . . 3 1 . 1 . . . . Successful 6 | . . . 3 . . 2 1 . . . . . . Failed 3 | . . . 1 . . 1 . . 1 . . . . Catastrophic . | . . . . . . . . . . . . . . Database Lockouts . | . . . . . . . . . . . . . . Manual . | . . . . . . . . . . . . . . Terminals 3 | . . . . . . 3 . . . . . . . Fabricators . | . . . . . . . . . . . . . . Repair Stations 1 | . . . . . . . . . 1 . . . . Recycling Units . | . . . . . . . . . . . . . . Scanalyzers 4 | . . . 4 . . . . . . . . . . Garrison Access . | . . . . . . . . . . . . . . Terminal Hacks 3 | . . . . . . 2 1 . . . . . . Record 2 | . . . . . . 2 . . . . . . . Open Door 1 | . . . . . . . 1 . . . . . . Fabricator Hacks . | . . . . . . . . . . . . . . Repair Station Hacks . | . . . . . . . . . . . . . . Recycling Unit Hacks . | . . . . . . . . . . . . . . Scanalyzer 3 | . . . 3 . . . . . . . . . . Insert Component 1 | . . . 1 . . . . . . . . . . Analyze 1 | . . . 1 . . . . . . . . . . Retrieve Study 1 | . . . 1 . . . . . . . . . . Garrison Access Hacks . | . . . . . . . . . . . . . . Unauthorized Hacks . | . . . . . . . . . . . . . . Terminals . | . . . . . . . . . . . . . . Fabricators . | . . . . . . . . . . . . . . Repair Stations . | . . . . . . . . . . . . . . Recycling Units . | . . . . . . . . . . . . . . Scanalyzers . | . . . . . . . . . . . . . . Garrison Access . | . . . . . . . . . . . . . . Data Cores Recovered . | . . . . . . . . . . . . . . Used . | . . . . . . . . . . . . . . Hacking Detections . | . . . . . . . . . . . . . . Full Trace Events . | . . . . . . . . . . . . . . Feedback Events . | . . . . . . . . . . . . . . Feedback Blocked . | . . . . . . . . . . . . . . Robot Schematics Acquired . | . . . . . . . . . . . . . . Robots Built . | . . . . . . . . . . . . . . Authchips . | . . . . . . . . . . . . . . Time . | . . . . . . . . . . . . . . Total Robot Build Rating . | . . . . . . . . . . . . . . Part Schematics Acquired 1 | . . . 1 . . . . . . . . . . Parts Built . | . . . . . . . . . . . . . . Authchips . | . . . . . . . . . . . . . . Time . | . . . . . . . . . . . . . . Total Part Build Rating . | . . . . . . . . . . . . . . Part Studies Acquired 1 | . . . 1 . . . . . . . . . . Parts Repaired . | . . . . . . . . . . . . . . Time . | . . . . . . . . . . . . . . Parts Recycled . | . . . . . . . . . . . . . . Recycled Matter . | . . . . . . . . . . . . . . Retrieved Matter . | . . . . . . . . . . . . . . Retrieved Components . | . . . . . . . . . . . . . . Parts Scanalyzed 1 | . . . 1 . . . . . . . . . . Part Schematics Acquired 1 | . . . 1 . . . . . . . . . . Parts Damaged . | . . . . . . . . . . . . . . Bothacking | -11 -10 -10 -9 -9 -8 -7 -7 -7 -6 -6 -6 -5 -5 ------------ Run | Yrd Mat Min Mat Min Mat Fac Low Low Fac Low Low Fac Upp Used RIF Installer . | . . . . . . . . . . . . . . Robots Hacked 1 | . . . . . 1 . . . . . . . . Non-combat . | . . . . . . . . . . . . . . Combat 1 | . . . . . 1 . . . . . . . . Robot Hacks Applied 1 | . . . . . 1 . . . . . . . . parse_system 1 | . . . . . 1 . . . . . . . . Relay Couplers Released . | . . . . . . . . . . . . . . Fabnet Peak Effective % . | . . . . . . . . . . . . . . Robots Rewired . | . . . . . . . . . . . . . . Allies Hacked . | . . . . . . . . . . . . . . Hacks Repelled . | . . . . . . . . . . . . . . Allies | -11 -10 -10 -9 -9 -8 -7 -7 -7 -6 -6 -6 -5 -5 -------- Run | Yrd Mat Min Mat Min Mat Fac Low Low Fac Low Low Fac Upp Total Allies 1 | . . 1 . . . . . . . . . . . Largest Group 1 | . . 1 . . . . . . . . . . . Highest-Rated Group 31 | . . 31 . . . . . . . . . . . Highest-Rated Ally 31 | . . 31 . . . . . . . . . . . Total Orders . | . . . . . . . . . . . . . . Ally Attacks 8 | . . 8 . . . . . . . . . . . Total Damage 42 | . . 42 . . . . . . . . . . . Kills 1 | . . 1 . . . . . . . . . . . Allies Corrupted . | . . . . . . . . . . . . . . Allies Melted . | . . . . . . . . . . . . . . Intel | -11 -10 -10 -9 -9 -8 -7 -7 -7 -6 -6 -6 -5 -5 ------- Run | Yrd Mat Min Mat Min Mat Fac Low Low Fac Low Low Fac Upp Active Infowar (turns) 1085 | . . . . . . . . . . 515 99 471 . Sensors 621 | . . . . . . . . . . 51 99 471 . Traps 917 | . . . . . . . . . . 515 99 303 . Robot Analysis Total . | . . . . . . . . . . . . . . Derelict Logs Recovered 2 | . . . . . . . 2 . . . . . . Drone Launches . | . . . . . . . . . . . . . . Drone Recoveries . | . . . . . . . . . . . . . . Exploration | -11 -10 -10 -9 -9 -8 -7 -7 -7 -6 -6 -6 -5 -5 ------------- Run | Yrd Mat Min Mat Min Mat Fac Low Low Fac Low Low Fac Upp Turns Passed 4960 | 82 71 437 599 36 175 74 376 44 520 566 99 1855 26 Spaces Moved 4545 | 65 49 292 366 97 291 181 1016 52 438 425 83 1186 4 Core 34 | 9 . . 19 . 6 . . . . . . . . Treads . | . . . . . . . . . . . . . . Legs 2572 | 56 49 292 188 . . . . . 289 425 83 1186 4 Wheels . | . . . . . . . . . . . . . . Hover . | . . . . . . . . . . . . . . Flight 1939 | . . . 159 97 285 181 1016 52 149 . . . . Fastest Speed 31 | 50 120 120 37 37 31 31 31 37 37 120 120 120 120 Average Speed 85 | 110 120 120 116 37 39 31 31 37 91 120 120 120 120 Slowest Speed 440 | 120 120 120 440 37 150 31 31 37 120 120 120 120 120 Overloaded Moves . | . . . . . . . . . . . . . . Propulsion Burnouts . | . . . . . . . . . . . . . . Robots Hopped 3 | . . . 1 . . . 1 . 1 . . . . Potential Cave-ins . | . . . . . . . . . . . . . . Cave-ins Triggered . | . . . . . . . . . . . . . . Exploration Rate (%) 26 | 4 18 51 23 26 32 4 93 11 12 55 17 27 2 Regions Visited 13 Branch Regions 7 Pre-discovered Areas . | . . . . . . . . . . . . . . Known Exits Taken . | . . . . . . . . . . . . . . Unknown Exits Taken 13 | 1 1 1 1 1 1 1 1 1 1 1 1 1 . Scrap Searched 12 | . . . . 3 . . 5 1 . 2 1 . . Spaces Dug . | . . . . . . . . . . . . . . Terrain Destroyed 87 | . . 2 41 . . . 15 . . . 1 28 . Melee . | . . . . . . . . . . . . . . Projectile 24 | . . 2 . . . . . . . . 1 21 . AOE 61 | . . . 41 . . . 15 . . . . 5 . Terrain Rammed . | . . . . . . . . . . . . . . Walls Destroyed . | . . . . . . . . . . . . . . Machines Disabled . | . . . . . . . . . . . . . . Actions | -11 -10 -10 -9 -9 -8 -7 -7 -7 -6 -6 -6 -5 -5 --------- Run | Yrd Mat Min Mat Min Mat Fac Low Low Fac Low Low Fac Upp Total 5115 | 75 55 326 461 96 334 198 1047 65 502 464 82 1399 11 Wait 63 | . . . 1 . 7 . 5 . . 11 . 39 . Move 4526 | 64 48 291 363 96 290 180 1013 51 435 424 82 1185 4 Hop 3 | . . . 1 . . . 1 . 1 . . . . Pick Up 32 | 5 . 1 6 . 1 1 . 1 1 . . 16 . Fast Attach 53 | 2 . . 7 . 8 1 . . 10 8 . 16 1 Attach 21 | 3 . 1 4 . 2 . 1 2 2 1 . 5 . Detach 2 | . . . . . . . . . 1 1 . . . Swap 26 | . . . 7 . 2 . . . 1 . . 16 . Drop 41 | 1 . . 11 . 1 1 . . 3 1 . 23 . Fire 316 | . 7 33 61 . 9 . 27 11 48 16 . 98 6 Melee 7 | . . . . . 7 . . . . . . . . Ram 7 | . . . . . 7 . . . . . . . . Kick 3 | . . . . . . . . . . 2 . 1 . Crush . | . . . . . . . . . . . . . . Escape Stasis 15 | . . . . . . 15 . . . . . . . Rewire . | . . . . . . . . . . . . . . Trap . | . . . . . . . . . . . . . . Miscellaneous . | . . . . . . . . . . . . . . Route ------- -11/Scrapyard -10/Materials -10/Mines -9/Materials -9/Mines -8/Materials -7/Factory -7/Lower Caves -7/Lower Caves -6/Factory (discovered 3 exits: [*Fac] / [*Low] / Ext) -6/Lower Caves -6/Lower Caves -5/Factory -5/Upper Caves History --------- Turn | Location | Event 34 | -11/Scrapyard | Discovered new exit (range 16) 83 | -11/Scrapyard | Entered Materials 144 | -10/Materials | Discovered new exit (range 7) 154 | -10/Materials | Entered Mines 157 | -10/Mines | Received a Mining Laser from a helpful Derelict 194 | -10/Mines | Excavation squad dispatched 194 | -10/Mines | A large section of the Mines collapsed 302 | -10/Mines | Build established: Mutant 347 | -10/Mines | Discovered new exit (range 8) 591 | -10/Mines | Entered Materials 591 | -9/Materials | Evolved 2 slots: Utility x2 789 | -9/Materials | Core integrity fell below 50% 816 | -9/Materials | Lost 4 parts (2n2w) 821 | -9/Materials | Core integrity fell below 20% 908 | -9/Materials | Discovered new exit (range 15) 1190 | -9/Materials | Entered Mines 1221 | -9/Mines | Discovered new exit (range 11) 1226 | -9/Mines | Entered Materials 1226 | -8/Materials | Evolved 2 slots: Propulsion x2 1348 | -8/Materials | Core integrity fell below 50% 1374 | -8/Materials | Lost 4 parts (1p1n2w) 1397 | -8/Materials | Discovered new exit (range 14) 1401 | -8/Materials | Entered Factory 1401 | -7/Factory | Evolved 2 slots: Power x1, Propulsion x1 1430 | -7/Factory | Discovered new exit (range 11) 1475 | -7/Factory | Entered Lower Caves 1539 | -7/Lower Caves | Learned location of 1 exit from Factory 1542 | -7/Lower Caves | Learned 4 Factory zone layouts 1620 | -7/Lower Caves | Build established: Scavenger-Sprinter 1653 | -7/Lower Caves | Encountered a Warlord checkpoint 1827 | -7/Lower Caves | Discovered new exit (range 10) 1851 | -7/Lower Caves | Entered another Lower Caves area 1889 | -7/Lower Caves | Discovered new exit (range 13) 1895 | -7/Lower Caves | Lost 3 parts (1p2n) 1895 | -7/Lower Caves | Entered Factory 1895 | -6/Factory | Evolved 2 slots: Propulsion x1, Utility x1 1896 | -6/Factory | Identified exit to Extension 1938 | -6/Factory | Discovered new exit (range 15) 2253 | -6/Factory | Build established: Mutant 2366 | -6/Factory | Discovered new exit (range 15) 2415 | -6/Factory | Entered Lower Caves 2627 | -6/Lower Caves | Encountered a Warlord checkpoint 2967 | -6/Lower Caves | Discovered new exit (range 11) 2981 | -6/Lower Caves | Entered another Lower Caves area 3062 | -6/Lower Caves | Discovered new exit (range 10) 3080 | -6/Lower Caves | Entered Factory 3080 | -5/Factory | Evolved 2 slots: Weapon x2 3421 | -5/Factory | Lost 3 parts (1p1n1u) 3696 | -5/Factory | Build established: Scavenger-Gunner 4839 | -5/Factory | Core integrity fell below 50% 4849 | -5/Factory | Core integrity fell below 20% 4892 | -5/Factory | Discovered new exit (range 15) 4935 | -5/Factory | Entered Upper Caves 4962 | -5/Upper Caves | Core destroyed Last Messages --------------- 04952_ Overheating: Lrg. Storage Unit damaged (-21). 04952_ Overheating: Hvy. Laser damaged (-14). 04952_ Overheating: Carbon-fiber Leg damaged (-7). 04952_ Lgt. Nuclear Core fries itself beyond repair. 04952_ S-27 Virus destroyed. 04955_ Overheating: Hvy. Laser damaged (-14). 04956_ Unknown Flight Unit fries itself beyond repair. 04956_ Acquired 20 matter. 04957_ Overheating: Matter decay (-26). 04957_ Unknown Flight Unit fries itself beyond repair. 04957_ Acquired 18 matter. 04958_ Overheating: Flexi-carbon Leg damaged (-15). 04959_ Acquired Autogun. 04962_ Overheating: Core damaged (-130). Map ----- +----------------------------------------------------+ | ?????????????????????????????????????????????????? | | ?????????????????????????????????????????????????? | | ?????????????????????????????????????????????????? | | ?????????????????????????????????????????????????? | | ?????????????????????????????????????????????????? | | ?????????????????????????????????????????????????? | | ?????????????????????????????????????????????????? | | ?????????????????????????????????????????????????? | | ?????????????????????????????????????????????????? | | ?????????????????????????????????????????????????? | | ?????????????????????????????????????????????????? | | ??????????????????????# ????????????????????????? | | ??????????????????????# ????????????????????????? | | ??????????????????????# ????????????????????????? | | ??????????????????????# ????????????????????????? | | ??????????????????????# ????????????????????????? | | ??????????????????????# ????????????????????????? | | ??????????????????????# ????????????????????????? | | ??????????????????????# #???????????????????????? | | ??????????????????????# #???????????????????????? | | ??????????????????????# #???????????????????????? | | ??????????????????????# #???????????????????????? | | ??????????????????????# ###?????????????????????? | | ??????????????????????# ##????????????????????? | | ???????????????????####% = #????????????????????? | | ??????????????????## @ %######???????????????? | | ??????????????????# % #????????????? | | ??????????????????# %#########??????????????? | | ??????????????????### ##??????????????????????? | | ????????????????????# #???????????????????????? | | ??????????????????? #???????????????????????? | | ??????????????????### ##???????????????????????? | | ????????????????????####?????????????????????????? | | ?????????????????????????????????????????????????? | | ?????????????????????????????????????????????????? | | ?????????????????????????????????????????????????? | | ?????????????????????????????????????????????????? | | ?????????????????????????????????????????????????? | | ?????????????????????????????????????????????????? | | ?????????????????????????????????????????????????? | | ?????????????????????????????????????????????????? | | ?????????????????????????????????????????????????? | | ?????????????????????????????????????????????????? | | ?????????????????????????????????????????????????? | | ?????????????????????????????????????????????????? | | ?????????????????????????????????????????????????? | | ?????????????????????????????????????????????????? | | ?????????????????????????????????????????????????? | | ?????????????????????????????????????????????????? | | ?????????????????????????????????????????????????? | +----------------------------------------------------+ Best States ------------- Heat Dissipation 40 Energy Generation 28 Energy Capacity 375 Matter Stores 400 Matter Capacity 400 Sight Range 16 Robot Scan Range 16 Terrain Scan Density 10 Armor Coverage 300 Evasion (%) 70 Targeting Accuracy 5 Target Analysis 5 Matter Filtering 50 Defensive Hacking 20 Item Schematics ----------------- Flight Unit | -9/Materials | Scanalyzed Robot Schematics ------------------ None Fabricated ------------ Nothing Repaired ---------- Nothing Studied --------- Flight Unit | -9/Materials | Hacked Alien Tech Used ----------------- None Achievements -------------- Junior Dev Challenges ------------ None Game ------ Seed GodImpactDisintegrator Manual? 0 Play Time 01:01:33 Cumulative 11.9 hours Start 2026.01.15 @ 20:50:36 End 2026.01.15 @ 21:51:56 Sessions 1 Manual Loads 0 Difficulty Rogue Special Mode None Game No. 22 Rogue 22 Adventurer 0 Explorer 0 Win Type - Total 0 Types 0/0/0/0/0/0/0/0/0/0 Lore% 6 Gallery% 13 Achievement% 12 Wizard Run 0 Options --------- Layout 1 ASCII 0 Keyboard 0 Movement Arrows Keybinds 0 Fullscreen 1 Font 24/Smallcaps Map View 50x35 Zoom Use 0% Tactical HUD 1 Map Filters NONE Filters NONE Steam 1 RUN: 0c60fb5b-9570-4f1a-a222-cdc33b043d6a